bitfinex/quotes_BTCUSD_20250123
["timestamp","ask_amount","ask_price","bid_price","bid_amount"]
[1737636894881,0.229776,101650.0,101640.0,0.00029904]
[1737636897138,0.229776,101650.0,101640.0,0.09868504]
[1737636897343,0.229776,101650.0,101640.0,0.00029904]
[1737636898530,0.229776,101650.0,101640.0,0.09868504]
[1737636898768,0.229776,101650.0,101640.0,0.00029904]
[1737636899356,0.27845008,101650.0,101640.0,0.00029904]
[1737636899563,0.229776,101650.0,101640.0,0.00029904]
[1737636900369,0.229776,101650.0,101640.0,0.09868504]
[1737636900568,0.229776,101650.0,101640.0,0.00029904]
[1737636900951,0.229776,101650.0,101640.0,0.09868504]
[1737636901631,0.229776,101650.0,101640.0,0.00029904]
[1737636904897,0.27845008,101650.0,101640.0,0.00029904]
[1737636905187,0.49169018,101650.0,101640.0,0.00029904]
[1737636906918,0.51169018,101650.0,101640.0,0.00029904]
[1737636908112,0.63903747,101650.0,101640.0,0.00029904]
[1737636912664,0.242486,101640.0,101630.0,0.00021655]
[1737636912899,0.35440018,101640.0,101630.0,0.00021655]
[1737636916057,0.222486,101640.0,101630.0,0.00021655]
[1737636916240,0.147486,101640.0,101630.0,0.00021655]
[1737636918629,0.25940018,101640.0,101630.0,0.00021655]
[1737636922685,0.147486,101640.0,101630.0,0.00021655]
[1737636923485,0.42940018,101640.0,101630.0,0.00021655]
[1737636923692,0.47940018,101640.0,101630.0,0.00021655]
[1737636923921,0.57674747,101640.0,101630.0,0.00021655]
[1737636924946,0.65914747,101640.0,101630.0,0.00021655]
[1737636925151,0.60914747,101640.0,101630.0,0.00021655]
[1737636925363,0.65914747,101640.0,101630.0,0.00021655]
[1737636925779,0.75649476,101640.0,101630.0,0.00021655]
[1737636926436,0.86840894,101640.0,101630.0,0.00021655]
[1737636926908,0.75649476,101640.0,101630.0,0.00021655]
[1737636927657,0.84840894,101640.0,101630.0,0.00021655]
[1737636927847,0.73649476,101640.0,101630.0,0.00021655]
[1737636928504,0.72649476,101640.0,101630.0,0.00021655]
[1737636928935,0.67663726,101640.0,101630.0,0.00021655]
[1737636929131,0.72663726,101640.0,101630.0,0.00021655]
[1737636929933,0.83855144,101640.0,101630.0,0.00021655]
[1737636932580,0.8618955,101640.0,101630.0,0.00021655]
[1737636934161,0.248396,101630.0,101620.0,0.00024089]
[1737636934363,0.55500476,101630.0,101620.0,0.00024089]
[1737636935078,0.45765747,101630.0,101620.0,0.00024089]
[1737636942500,0.36031018,101630.0,101620.0,0.00024089]
[1737636942700,0.268396,101630.0,101620.0,0.07764089]
[1737636942877,0.38031018,101630.0,101620.0,0.07764089]
[1737636943104,0.38031018,101630.0,101620.0,0.00024089]
[1737636943309,0.47765747,101630.0,101620.0,0.00024089]
[1737636946617,0.36031018,101630.0,101620.0,0.00024089]
[1737636946851,0.248396,101630.0,101620.0,0.00024089]
[1737636947023,0.248396,101630.0,101620.0,0.07864089]
[1737636947610,0.248396,101630.0,101620.0,0.12794089]
[1737636948733,0.248096,101630.0,101620.0,0.12794089]
[1737636949704,0.57470476,101630.0,101620.0,0.00024089]
[1737636950880,0.47735747,101630.0,101620.0,0.00024089]
[1737636951946,0.58269997,101630.0,101620.0,0.00024089]
[1737636952305,0.60735715,101630.0,101620.0,0.00024089]
[1737636952906,0.63269997,101630.0,101620.0,0.00024089]
[1737636953112,0.168405,101620.0,101610.0,0.00023612]
[1737636953292,0.47501376,101620.0,101610.0,0.00023612]
[1737636953915,0.45501376,101620.0,101610.0,0.00023612]
[1737636954122,0.098405,101620.0,101610.0,0.12263612]
[1737636954286,0.09850409,101620.0,101610.0,0.12263612]
[1737636954694,0.09850409,101620.0,101610.0,0.12233542]
[1737636960675,0.09850409,101620.0,101610.0,0.07613542]
[1737636960819,0.30776556,101620.0,101610.0,0.07613542]
[1737636961021,0.09850409,101620.0,101610.0,0.07613542]
[1737636962989,0.14708908,101610.0,101600.0,4.70296093]
[1737636963199,0.098415,101610.0,101600.0,4.65416093]
[1737636968207,0.118415,101610.0,101600.0,4.65416093]
[1737636968466,0.23032918,101610.0,101600.0,4.57596093]
[1737636970308,0.38032918,101610.0,101600.0,4.57596093]
[1737636970556,0.55583588,101610.0,101600.0,4.57596093]
[1737636971272,0.36576229,101610.0,101600.0,4.57596093]
[1737636975313,0.34576229,101610.0,101600.0,4.57596093]
[1737636975630,0.39576229,101610.0,101600.0,4.57596093]
[1737636975830,0.34576229,101610.0,101600.0,4.57596093]
[1737636976598,0.39576229,101610.0,101600.0,4.57596093]
[1737636976906,0.37883777,101610.0,101600.0,4.57596093]
[1737636977124,0.34576229,101610.0,101600.0,4.57596093]
[1737636977459,0.39576229,101610.0,101600.0,4.57477809]
[1737636977908,0.098415,101610.0,101600.0,4.57477809]
[1737636978110,0.098415,101610.0,101600.0,4.65512077]
[1737636986252,0.098415,101610.0,101600.0,4.75354577]
[1737636986453,0.29547359,101620.0,101610.0,0.0793]
[1737636986795,0.44547359,101620.0,101610.0,0.1255]
[1737636987467,0.00024159,101620.0,101610.0,0.223915]
[1737636987677,0.00024159,101620.0,101610.0,0.46709647]
[1737636987883,0.00024159,101620.0,101610.0,0.72901065]
[1737636988095,0.00024159,101620.0,101610.0,0.6477665]
[1737636988708,0.00024159,101620.0,101610.0,0.61709647]
[1737636990488,0.00024159,101620.0,101610.0,0.60617647]
[1737636990691,0.00024159,101620.0,101610.0,0.72901065]
[1737636990926,0.00024159,101620.0,101610.0,0.61709647]
[1737636993702,0.00024159,101620.0,101610.0,0.59409647]
[1737637010458,0.04165431,101630.0,101610.0,0.37018147]
[1737637010669,0.0001424,101660.0,101650.0,0.415776]
[1737637010868,0.0001424,101660.0,101650.0,0.62503747]
[1737637011072,0.0001424,101660.0,101650.0,0.68032975]
[1737637011300,0.0001424,101660.0,101650.0,0.65503747]
[1737637011507,0.0001424,101660.0,101650.0,0.60503747]
[1737637011719,0.0001424,101660.0,101650.0,0.71695165]
[1737637015443,0.0001424,101660.0,101650.0,0.72795165]
[1737637015864,0.0001424,101660.0,101650.0,0.61603747]
[1737637016954,0.0001424,101660.0,101650.0,0.59303747]
[1737637018423,0.0001424,101660.0,101650.0,0.59311747]
[1737637019677,0.0001424,101660.0,101650.0,0.58203747]
[1737637019829,0.0001424,101660.0,101650.0,0.59315747]
[1737637020219,0.0001424,101660.0,101650.0,0.58203747]
[1737637020425,0.0001424,101660.0,101650.0,0.59315747]
[1737637025253,0.0001424,101660.0,101650.0,0.61615747]
[1737637029694,0.0001424,101660.0,101650.0,0.60503747]
[1737637029890,0.0001424,101660.0,101650.0,0.61615747]
[1737637031349,0.0001424,101660.0,101650.0,0.60503747]
[1737637031510,0.0001424,101660.0,101650.0,0.61611747]
[1737637032693,0.0001424,101660.0,101650.0,0.63611747]
[1737637034286,0.0001424,101660.0,101650.0,0.61611747]
[1737637034497,0.0001424,101660.0,101650.0,0.63611747]
[1737637035764,0.0001424,101660.0,101650.0,0.77429751]
[1737637037047,4e-07,101660.0,101650.0,0.95123318]
[1737637037455,4e-07,101660.0,101650.0,0.839319]
[1737637037652,4e-07,101660.0,101650.0,0.80484127]
[1737637037855,4e-07,101660.0,101650.0,0.839319]
[1737637041990,4e-07,101660.0,101650.0,0.828239]
[1737637042193,4e-07,101660.0,101650.0,0.839519]
[1737637043334,4e-07,101660.0,101650.0,0.75133896]
[1737637043490,4e-07,101660.0,101650.0,0.751638]
[1737637044522,4e-07,101660.0,101650.0,0.71656552]
[1737637046282,4e-07,101660.0,101650.0,0.75104325]
[1737637046458,4e-07,101660.0,101650.0,0.86295743]
[1737637046659,4e-07,101660.0,101650.0,0.75104325]
[1737637046959,4e-07,101660.0,101650.0,0.86295743]
[1737637047254,4e-07,101660.0,101650.0,0.75104325]
[1737637047417,4e-07,101660.0,101650.0,0.86295743]
[1737637047623,4e-07,101660.0,101650.0,0.75104325]
[1737637048722,4e-07,101660.0,101650.0,0.86295743]
[1737637049634,4e-07,101660.0,101650.0,0.75104325]
[1737637049805,4e-07,101660.0,101650.0,0.86295743]
[1737637056463,4e-07,101660.0,101650.0,0.8284797]
[1737637057930,4e-07,101660.0,101650.0,0.71656552]
[1737637058137,4e-07,101660.0,101650.0,0.56658552]
[1737637058310,4e-07,101660.0,101650.0,0.42766552]
[1737637058515,4e-07,101660.0,101650.0,0.34896552]
[1737637058928,4e-07,101660.0,101650.0,0.49896552]
[1737637059526,4e-07,101660.0,101650.0,0.34896552]
[1737637059709,4e-07,101660.0,101650.0,0.49896552]
[1737637061299,4e-07,101660.0,101650.0,0.49892552]
[1737637061509,0.0499004,101660.0,101650.0,0.38701134]
[1737637061717,0.0499004,101660.0,101650.0,0.49892552]
[1737637061927,0.0499004,101660.0,101650.0,0.48788552]
[1737637062137,0.1268004,101660.0,101650.0,0.38701134]
[1737637062360,0.1268004,101660.0,101650.0,0.34542758]
[1737637062595,0.2251674,101660.0,101650.0,0.20646758]
[1737637063016,0.1268004,101660.0,101650.0,0.20646758]
[1737637063228,0.2251674,101660.0,101650.0,0.20646758]
[1737637063854,0.2481674,101660.0,101650.0,0.00029904]
[1737637064081,0.36008158,101660.0,101650.0,0.01133904]
[1737637064285,0.2481674,101660.0,101650.0,0.01133904]
[1737637064504,0.2251674,101660.0,101650.0,0.10872633]
[1737637065156,0.2251674,101660.0,101650.0,0.20710233]
[1737637066326,0.1268004,101660.0,101650.0,0.20710233]
[1737637074465,0.1268004,101660.0,101650.0,0.20694233]
[1737637075656,0.0499004,101660.0,101650.0,0.31885651]
[1737637075761,4e-07,101660.0,101650.0,0.31885651]
[1737637078833,4e-07,101660.0,101650.0,0.46885651]
[1737637079044,4e-07,101660.0,101650.0,0.54525651]
[1737637079242,4e-07,101660.0,101650.0,0.59365651]
[1737637084541,4e-07,101660.0,101650.0,0.54525651]
[1737637088977,4e-07,101660.0,101650.0,0.59445651]
[1737637090417,4e-07,101660.0,101650.0,0.62506753]
[1737637091652,4e-07,101660.0,101650.0,0.61414753]
[1737637091923,4e-07,101660.0,101650.0,0.62534753]
[1737637098949,4e-07,101660.0,101650.0,0.71364679]
[1737637102480,4e-07,101660.0,101650.0,0.73364679]
[1737637102608,4e-07,101660.0,101650.0,0.78364679]
[1737637103283,4e-07,101660.0,101650.0,0.73364679]
[1737637103465,4e-07,101660.0,101650.0,0.31493261]
[1737637103668,4e-07,101660.0,101650.0,0.29544159]
[1737637103871,0.0799004,101660.0,101650.0,0.29544159]
[1737637104105,0.1782674,101660.0,101650.0,0.28432159]
[1737637104243,0.2252674,101660.0,101650.0,0.19730559]
[1737637105110,0.2252674,101660.0,101650.0,0.1000383]
[1737637107082,0.2252674,101660.0,101650.0,0.01173904]
[1737637110429,0.45494554,101660.0,101650.0,0.00029904]
[1737637110605,0.38018158,101660.0,101650.0,0.00029904]
[1737637110831,0.60752887,101660.0,101650.0,0.00029904]
[1737637111035,0.243,101650.0,101640.0,0.00029925]
[1737637111236,0.61043747,101650.0,101640.0,0.00029925]
[1737637111443,0.70778476,101650.0,101640.0,0.00029925]
[1737637112112,0.232496,101630.0,101620.0,0.08819632]
[1737637112365,0.232496,101630.0,101620.0,0.08870062]
[1737637113362,0.209496,101630.0,101620.0,0.28445291]
[1737637113748,0.209496,101630.0,101620.0,0.19625659]
[1737637117659,0.24634727,101630.0,101620.0,0.19625659]
[1737637119233,0.209496,101630.0,101620.0,0.19625659]
[1737637119409,0.61416,101640.0,101620.0,0.39305659]
[1737637119624,0.098396,101630.0,101620.0,0.19625659]
[1737637119821,0.175596,101630.0,101620.0,0.0005043]
[1737637120314,0.198596,101630.0,101620.0,0.0005043]
[1737637120519,0.29594329,101630.0,101620.0,0.0005043]
[1737637123490,0.29594329,101630.0,101620.0,0.00080355]
[1737637126629,0.198596,101630.0,101620.0,0.00080355]
[1737637127418,0.175596,101630.0,101620.0,0.00080355]
[1737637127619,0.175596,101630.0,101620.0,0.09920855]
[1737637127887,0.175596,101630.0,101620.0,0.00080355]
[1737637128358,0.098396,101630.0,101620.0,0.00080355]
[1737637130417,0.39921608,101630.0,101620.0,0.00080355]
[1737637131282,0.2873019,101630.0,101620.0,0.00080355]
[1737637133780,0.3338019,101630.0,101620.0,0.00080355]
[1737637136202,0.5338019,101630.0,101620.0,0.00080355]
[1737637138884,0.66571608,101630.0,101620.0,0.00080355]
[1737637141180,0.465696,101630.0,101620.0,0.00080355]
[1737637142379,0.445696,101630.0,101620.0,0.00080355]
[1737637142618,0.465696,101630.0,101620.0,0.00080355]
[1737637142827,0.445696,101630.0,101620.0,0.00080355]
[1737637143427,0.465696,101630.0,101620.0,0.00080355]
[1737637143626,0.56304329,101630.0,101620.0,0.00080355]
[1737637144831,0.66039058,101630.0,101620.0,0.00080355]
[1737637145369,0.72230476,101630.0,101620.0,0.00080355]
[1737637145615,0.70230476,101630.0,101620.0,0.00080355]
[1737637146652,0.72230476,101630.0,101620.0,0.00080355]
[1737637146891,0.70230476,101630.0,101620.0,0.00080355]
[1737637174509,1.02600476,101630.0,101620.0,0.00080355]
[1737637179874,1.06061936,101630.0,101620.0,0.00080355]
[1737637180399,0.73691936,101630.0,101620.0,0.00080355]
[1737637181549,0.65911936,101630.0,101620.0,0.00080355]
[1737637183020,0.24166039,101630.0,101620.0,0.08290355]
[1737637183214,0.39166039,101630.0,101620.0,0.08290355]
[1737637183779,0.28000183,101630.0,101620.0,0.08290355]
[1737637183922,0.38000183,101630.0,101620.0,0.08290355]
[1737637184118,0.43000183,101630.0,101620.0,0.08290355]
[1737637188617,0.44866734,101630.0,101620.0,0.08290355]
[1737637190376,0.43000183,101630.0,101620.0,0.08290355]
[1737637193935,0.42500183,101630.0,101620.0,0.08290355]
[1737637194140,0.40500183,101630.0,101620.0,0.08290355]
[1737637195955,0.54534912,101630.0,101620.0,0.08290355]
[1737637201652,0.52234912,101630.0,101620.0,5.5e-07]
[1737637201866,0.69699641,101630.0,101620.0,5.5e-07]
[1737637202488,0.59269641,101630.0,101620.0,5.5e-07]
[1737637202721,0.49534912,101630.0,101620.0,5.5e-07]
[1737637202923,0.47534912,101630.0,101620.0,5.5e-07]
[1737637203338,0.39534912,101630.0,101620.0,0.08170055]
[1737637203547,0.093396,101630.0,101620.0,0.08170055]
[1737637203751,0.18663051,101630.0,101620.0,0.08170055]
[1737637203926,0.38663051,101630.0,101620.0,0.08170055]
[1737637204329,0.38692976,101630.0,101620.0,0.08170055]
[1737637204729,0.48427705,101630.0,101620.0,0.08170055]
[1737637204965,0.09369525,101630.0,101620.0,0.32445284]
[1737637205114,0.09369525,101630.0,101620.0,0.33637284]
[1737637205115,0.09869525,101630.0,101620.0,0.33637284]
[1737637205952,0.09869525,101630.0,101620.0,0.23796784]
[1737637206439,0.09869525,101630.0,101620.0,0.14062055]
[1737637209519,0.09869525,101630.0,101620.0,0.23796784]
[1737637209725,0.09869525,101630.0,101620.0,0.33637284]
[1737637210045,0.00029925,101630.0,101620.0,0.33637284]
[1737637210899,0.00029925,101630.0,101620.0,0.32445284]
[1737637211099,0.00029925,101630.0,101620.0,0.33629284]
[1737637211908,0.09869525,101630.0,101620.0,0.33629284]
[1737637212130,0.00029925,101630.0,101620.0,0.33629284]
[1737637213211,0.00029925,101630.0,101620.0,0.44784497]
[1737637214024,0.00029925,101630.0,101620.0,0.33629284]
[1737637218304,0.00029925,101630.0,101620.0,0.44784497]
[1737637218626,0.00029925,101630.0,101620.0,0.47784497]
[1737637226721,0.09869525,101630.0,101620.0,0.35445284]
[1737637226923,0.09869525,101630.0,101620.0,0.36653284]
[1737637227125,0.09869525,101630.0,101620.0,0.22120784]
[1737637227296,0.09869525,101630.0,101620.0,0.31961284]
[1737637227502,0.09869525,101630.0,101620.0,0.22120784]
[1737637227701,0.09869525,101630.0,101620.0,0.31961284]
[1737637229423,0.27916566,101630.0,101620.0,0.03000055]
[1737637229645,0.27916566,101630.0,101620.0,5.5e-07]
[1737637231628,0.16761353,101630.0,101620.0,5.5e-07]
[1737637232078,0.09869525,101630.0,101620.0,5.5e-07]
[1737637235846,0.22739525,101630.0,101620.0,5.5e-07]
[1737637236053,0.55894738,101630.0,101620.0,5.5e-07]
[1737637243092,0.53894738,101630.0,101620.0,5.5e-07]
[1737637243299,0.55894738,101630.0,101620.0,5.5e-07]
[1737637243455,0.65629467,101630.0,101620.0,5.5e-07]
[1737637244961,0.55894738,101630.0,101620.0,5.5e-07]
[1737637249943,0.60929467,101630.0,101620.0,5.5e-07]
[1737637261190,0.7208468,101630.0,101620.0,5.5e-07]
[1737637263018,0.8208468,101630.0,101620.0,5.5e-07]
[1737637263227,0.8208468,101630.0,101600.0,4.49578132]
[1737637263228,0.695815,101610.0,101600.0,4.49578132]
[1737637263459,1.02506171,101610.0,101600.0,4.47624764]
[1737637263666,1.06106171,101610.0,101600.0,4.47624764]
[1737637264076,1.17261384,101610.0,101600.0,4.47624764]
[1737637264455,0.89001442,101610.0,101600.0,4.47624764]
[1737637264664,0.91001442,101610.0,101600.0,4.47624764]
[1737637264862,0.87401442,101610.0,101600.0,4.47624764]
[1737637265573,0.98556655,101610.0,101600.0,4.47624764]
[1737637265766,0.87401442,101610.0,101600.0,4.47624764]
[1737637265949,1.08291384,101610.0,101600.0,4.47624764]
[1737637267444,0.97136171,101610.0,101600.0,4.47624764]
[1737637267674,1.08291384,101610.0,101600.0,4.47624764]
[1737637269164,0.97136171,101610.0,101600.0,4.47624764]
[1737637269392,1.08291384,101610.0,101600.0,4.47624764]
[1737637270348,0.97136171,101610.0,101600.0,4.47624764]
[1737637271426,1.08291384,101610.0,101600.0,4.47624764]
[1737637271851,0.97136171,101610.0,101600.0,4.47624764]
[1737637272058,0.572115,101610.0,101600.0,4.55824764]
[1737637272480,0.248415,101610.0,101600.0,4.55824764]
[1737637272898,0.098415,101610.0,101600.0,4.55824764]
[1737637273099,0.098415,101610.0,101600.0,4.80221993]
[1737637273978,0.098415,101610.0,101600.0,4.70379493]
[1737637274327,0.098415,101610.0,101600.0,4.80221993]
[1737637274779,0.492066,101620.0,101610.0,0.124]
[1737637275021,0.295238,101620.0,101610.0,0.22134729]
[1737637279181,0.795238,101620.0,101610.0,0.124]
[1737637282459,0.90679013,101620.0,101610.0,0.124]
[1737637282667,0.90679013,101620.0,101610.0,0.0779]
[1737637282893,1.00413742,101620.0,101610.0,0.0779]
[1737637285287,1.00443667,101620.0,101610.0,0.0779]
[1737637287258,0.90708938,101620.0,101610.0,0.0779]
[1737637287491,0.94553725,101620.0,101610.0,0.0779]
[1737637287888,0.94553725,101620.0,101610.0,0.27464635]
[1737637288103,0.59871225,101620.0,101610.0,0.31926229]
[1737637288308,0.50029925,101620.0,101610.0,0.43081442]
[1737637288665,0.50029925,101620.0,101610.0,0.31926229]
[1737637290088,0.50029925,101620.0,101610.0,0.70396655]
[1737637290300,0.42219925,101620.0,101610.0,0.72696655]
[1737637290505,0.42219925,101620.0,101610.0,0.74696655]
[1737637291121,0.34409925,101620.0,101610.0,0.82756933]
[1737637291302,0.21599925,101620.0,101610.0,0.80411282]
[1737637291560,0.13733703,101620.0,101610.0,0.71906655]
[1737637291762,0.13733703,101620.0,101610.0,0.76336655]
[1737637292033,0.13733703,101620.0,101610.0,0.77336655]
[1737637292656,0.13733703,101620.0,101610.0,0.68181442]
[1737637292867,0.13733703,101620.0,101610.0,0.77336655]
[1737637293305,0.13733703,101620.0,101610.0,0.66181442]
[1737637293521,0.13733703,101620.0,101610.0,0.68181442]
[1737637293741,0.13733703,101620.0,101610.0,0.79336655]
[1737637294725,0.13733703,101620.0,101610.0,0.74336655]
[1737637294932,0.13733703,101620.0,101610.0,0.79336655]
[1737637297048,0.13733703,101620.0,101610.0,0.79350905]
[1737637298251,0.13733703,101620.0,101610.0,0.79334905]
[1737637298797,0.13019076,101620.0,101610.0,0.79334905]
[1737637298986,0.00029925,101630.0,101620.0,0.191405]
[1737637299237,2.5e-07,101630.0,101620.0,0.71274011]
[1737637299440,0.0001425,101640.0,101630.0,0.341396]
[1737637299652,0.0001425,101640.0,101630.0,0.68054755]
[1737637300824,0.0001425,101640.0,101630.0,0.71066443]
[1737637301242,5e-07,101640.0,101630.0,0.71066443]
[1737637301441,4e-07,101660.0,101650.0,0.07]
[1737637301663,4e-07,101660.0,101650.0,0.60115874]
[1737637301865,4e-07,101660.0,101650.0,0.60017542]
[1737637302598,5.083e-05,101660.0,101650.0,0.60017542]
[1737637312086,5.083e-05,101660.0,101650.0,0.71172755]
[1737637314761,5.083e-05,101660.0,101650.0,0.79560244]
[1737637315480,8.3e-07,101660.0,101650.0,0.79560244]
[1737637318023,8.3e-07,101660.0,101650.0,0.83492544]
[1737637318763,8.3e-07,101660.0,101650.0,0.84644544]
[1737637318968,8.3e-07,101660.0,101650.0,0.73489331]
[1737637319394,0.00014333,101660.0,101650.0,0.73489331]
[1737637320509,0.00014333,101660.0,101650.0,0.82644544]
[1737637320711,0.00014333,101660.0,101650.0,0.84644544]
[1737637320890,0.00014333,101660.0,101650.0,0.63949842]
[1737637321092,0.00014333,101660.0,101650.0,0.65097842]
[1737637321298,0.00014333,101660.0,101650.0,0.61649842]
[1737637321545,0.00014333,101660.0,101650.0,0.63949842]
[1737637321723,0.00014333,101660.0,101650.0,0.73929474]
[1737637322871,0.00014333,101660.0,101650.0,0.55707174]
[1737637323281,0.00014333,101660.0,101650.0,0.58007174]
[1737637323690,0.00014333,101660.0,101650.0,0.40707174]
[1737637323901,0.07564333,101660.0,101650.0,0.28391961]
[1737637324123,0.17401033,101660.0,101650.0,0.29551961]
[1737637324335,0.07564333,101660.0,101650.0,0.20732329]
[1737637324745,0.17401033,101660.0,101650.0,0.10894729]
[1737637324954,0.17401033,101660.0,101650.0,0.19572329]
[1737637325161,0.17401033,101660.0,101650.0,0.20740329]
[1737637325945,0.07564333,101660.0,101650.0,0.20740329]
[1737637326466,0.17401033,101660.0,101650.0,0.20740329]
[1737637326669,0.07564333,101660.0,101650.0,0.20740329]
[1737637327498,0.22321033,101660.0,101650.0,0.09734729]
[1737637327753,0.178776,101650.0,101640.0,0.08819632]
[1737637327955,0.178776,101650.0,101640.0,0.18554361]
[1737637329045,0.178776,101650.0,101640.0,0.09734729]
[1737637329940,0.178776,101650.0,101640.0,0.19573329]
[1737637330162,0.0804,101650.0,101640.0,0.09734729]
[1737637330442,0.0804,101650.0,101640.0,0.41982131]
[1737637330597,0.0804,101650.0,101640.0,0.41883755]
[1737637330859,0.0804,101650.0,101640.0,0.30728542]
[1737637332417,0.0804,101650.0,101640.0,0.41883755]
[1737637332651,0.0804,101650.0,101640.0,0.56883755]
[1737637332875,0.0804,101650.0,101640.0,0.45728542]
[1737637334645,0.0804,101650.0,101640.0,0.53728542]
[1737637334902,0.0801393,101650.0,101640.0,0.53728542]
[1737637336549,0.00014333,101660.0,101650.0,0.248376]
[1737637336842,0.00014333,101660.0,101650.0,0.45727542]
[1737637337510,0.00014333,101660.0,101650.0,0.48027542]
[1737637337895,0.07664333,101660.0,101650.0,0.48027542]
[1737637338442,0.00014333,101660.0,101650.0,0.48027542]
[1737637338671,0.00014333,101660.0,101650.0,0.53027542]
[1737637339900,0.00014333,101660.0,101650.0,0.55027542]
[1737637340099,0.00014333,101660.0,101650.0,0.58083272]
[1737637343009,0.00014333,101660.0,101650.0,0.69238485]
[1737637343232,0.00014333,101660.0,101650.0,0.74068485]
[1737637343471,3.3e-07,101660.0,101650.0,0.74098485]
[1737637343678,3.7e-07,101670.0,101660.0,0.389667]
[1737637343891,5.8e-07,101670.0,101660.0,0.71011855]
[1737637344556,5.8e-07,101670.0,101660.0,0.82441032]
[1737637344759,5.8e-07,101670.0,101660.0,0.85377576]
[1737637347878,6.2e-07,101690.0,101680.0,0.341347]
[1737637348084,6.2e-07,101690.0,101680.0,0.80735344]
[1737637348266,6.2e-07,101690.0,101680.0,0.86683576]
[1737637349813,6.2e-07,101690.0,101680.0,0.86711576]
[1737637350653,6.2e-07,101690.0,101680.0,0.86681576]
[1737637350912,6.2e-07,101690.0,101680.0,0.82453888]
[1737637351088,6.2e-07,101690.0,101680.0,0.80729344]
[1737637351493,6.2e-07,101690.0,101680.0,0.83665888]
[1737637351699,6.2e-07,101690.0,101680.0,0.86484542]
[1737637354172,6.2e-07,101690.0,101680.0,0.80729344]
[1737637354373,6.2e-07,101690.0,101680.0,0.63362131]
[1737637354528,6.2e-07,101690.0,101680.0,0.69566131]
[1737637354930,6.2e-07,101690.0,101680.0,0.64570131]
[1737637355345,6.2e-07,101690.0,101680.0,0.73333872]
[1737637355548,0.08240062,101690.0,101680.0,0.71083872]
[1737637356383,0.08240062,101690.0,101680.0,0.73383872]
[1737637357285,6.2e-07,101690.0,101680.0,0.84539085]
[1737637357515,6.2e-07,101690.0,101680.0,0.89259085]
[1737637358524,6.2e-07,101690.0,101680.0,0.80495344]
[1737637359352,6.2e-07,101690.0,101680.0,0.80643344]
[1737637360225,6.2e-07,101690.0,101680.0,0.69488131]
[1737637364138,6.2e-07,101690.0,101680.0,0.80643344]
[1737637364341,6.2e-07,101690.0,101680.0,0.83681578]
[1737637364644,0.08240062,101690.0,101680.0,0.36380642]
[1737637364868,0.08240062,101690.0,101680.0,0.35172642]
[1737637365014,0.08240062,101690.0,101680.0,0.51368642]
[1737637365464,0.08240062,101690.0,101680.0,0.51398546]
[1737637366246,0.08240062,101690.0,101680.0,0.5433509]
[1737637366658,0.08240062,101690.0,101680.0,0.542172]
[1737637367194,0.08240062,101690.0,101680.0,0.592172]
[1737637367326,0.08240062,101690.0,101680.0,0.56398546]
[1737637368346,0.08240062,101690.0,101680.0,0.51398546]
[1737637369189,0.08240062,101690.0,101680.0,0.54398546]
[1737637369390,0.08240062,101690.0,101680.0,0.59444756]
[1737637369607,0.08240062,101690.0,101680.0,0.57444756]
[1737637369773,0.08240062,101690.0,101680.0,0.59444756]
[1737637369971,0.08240062,101690.0,101680.0,0.54444756]
[1737637370342,0.08240062,101690.0,101680.0,0.59444756]
[1737637371684,0.08240062,101690.0,101680.0,0.54444756]
[1737637371891,0.08240062,101690.0,101680.0,0.59444756]
[1737637372387,0.08240062,101690.0,101680.0,0.54444756]
[1737637372585,0.08240062,101690.0,101680.0,0.59444756]
[1737637374646,0.08240062,101690.0,101680.0,0.54444756]
[1737637374853,0.08240062,101690.0,101680.0,0.59444756]
[1737637377324,0.08240062,101690.0,101680.0,0.57444756]
[1737637377532,0.08240062,101690.0,101680.0,0.62444756]
[1737637381977,0.08240062,101690.0,101680.0,0.57444756]
[1737637382422,0.08240062,101690.0,101680.0,0.62444756]
[1737637384923,0.08240062,101690.0,101680.0,0.57444756]
[1737637386233,0.08240062,101690.0,101680.0,0.62444756]
[1737637386460,0.08240062,101690.0,101680.0,0.71208497]
[1737637388128,0.08192589,101690.0,101680.0,0.70012497]
[1737637388282,0.08192589,101690.0,101680.0,0.71204497]
[1737637388708,0.08206829,101690.0,101680.0,0.71204497]
[1737637390119,0.08206829,101690.0,101680.0,0.69204497]
[1737637390489,0.08206829,101690.0,101680.0,0.60440756]
[1737637391587,0.08206829,101690.0,101680.0,0.55440756]
[1737637392529,0.12946829,101690.0,101680.0,0.51948756]
[1737637392733,0.12946829,101690.0,101680.0,0.53144756]
[1737637392963,0.12946829,101690.0,101680.0,0.33948756]
[1737637393171,0.12946829,101690.0,101680.0,0.35156756]
[1737637393377,0.12946829,101690.0,101680.0,0.50156756]
[1737637393780,0.12946829,101690.0,101680.0,0.50164756]
[1737637397383,0.22780629,101690.0,101680.0,0.09912633]
[1737637397603,0.22780629,101690.0,101680.0,0.03322633]
[1737637397802,0.22780629,101690.0,101680.0,0.02102633]
[1737637398851,0.225247,101680.0,101670.0,0.08811505]
[1737637399058,0.225247,101680.0,101670.0,0.18546234]
[1737637399711,0.22475891,101680.0,101670.0,0.18546234]
[1737637400126,0.22475891,101680.0,101670.0,0.28381934]
[1737637400306,0.22475891,101680.0,101670.0,0.18546234]
[1737637400872,0.22475891,101680.0,101670.0,0.18576138]
[1737637401297,0.4197868,101680.0,101670.0,0.01031409]
[1737637401500,0.1286,101650.0,101640.0,0.50443925]
[1737637401725,0.226976,101650.0,101640.0,0.20876875]
[1737637401925,0.226976,101650.0,101640.0,0.09815075]
[1737637402130,0.376976,101650.0,101640.0,0.08890546]
[1737637402358,0.48852813,101650.0,101640.0,0.08890546]
[1737637402943,0.55774474,101650.0,101640.0,0.08890546]
[1737637403141,0.44619261,101650.0,101640.0,0.08890546]
[1737637403900,0.376976,101650.0,101640.0,0.08890546]
[1737637404413,0.48852813,101650.0,101640.0,0.08890546]
[1737637404617,0.227105,101620.0,101610.0,0.0985535]
[1737637404821,0.227105,101620.0,101610.0,0.19595522]
[1737637406479,0.1287,101620.0,101610.0,0.19595522]
[1737637407681,0.1287,101620.0,101610.0,0.30750735]
[1737637407819,0.0454,101640.0,101630.0,0.295178]
[1737637408028,0.1954,101640.0,101630.0,0.39252529]
[1737637408475,0.2714,101640.0,101630.0,0.39252529]
[1737637409357,0.1214,101640.0,101630.0,0.39252529]
[1737637409618,0.219786,101640.0,101630.0,0.39252529]
[1737637409842,0.1214,101640.0,101630.0,0.39252529]
[1737637410637,0.1214,101640.0,101630.0,0.50407742]
[1737637410845,0.0769,101650.0,101640.0,0.098386]
[1737637411046,0.0769,101650.0,101640.0,0.50502517]
[1737637411428,0.1303,101660.0,101650.0,0.098376]
[1737637411615,0.1303,101660.0,101650.0,0.30727542]
[1737637412314,0.425452,101680.0,101660.0,0.491797]
[1737637412516,0.425452,101680.0,101670.0,0.09734729]
[1737637412852,0.42595621,101680.0,101670.0,0.09734729]
[1737637413675,0.22925121,101680.0,101670.0,0.19570429]